lending/lending_fUSD_20250121
["ID","MTS","AMOUNT","RATE_DAILY","PERIOD"]
[349806321,1737437445118,-588.16,0.00021276,2]
[349806322,1737437445132,-500.0,0.00021276,2]
[349806323,1737437445141,-500.0,0.00021276,2]
[349806324,1737437445151,-500.0,0.00021276,2]
[349806325,1737437445160,-712.93,0.00021276,2]
[349806326,1737437445170,-500.0,0.00021276,2]
[349806327,1737437445179,-288.34,0.00021276,2]
[349806328,1737437445188,-500.0,0.00021276,2]
[349806329,1737437445198,-757.38,0.00021276,2]
[349806330,1737437445209,-597.23,0.00021277,2]
[349806331,1737437445219,-500.0,0.00021277,2]
[349806332,1737437445228,-500.0,0.00021277,2]
[349806333,1737437445237,-907.6386185,0.00021288,2]
[349806334,1737437445246,-225.967759,0.00021306,2]
[349806335,1737437445255,-500.0,0.00021306,2]
[349806336,1737437445264,-500.0,0.00021306,2]
[349806337,1737437445273,-500.0,0.00021306,2]
[349806338,1737437445282,-174.002142,0.00021306,2]
[349806339,1737437445291,-500.0,0.00021306,2]
[349806340,1737437445301,-500.0,0.00021306,2]
[349806341,1737437445319,-778.16,0.00021306,2]
[349806342,1737437445330,-536.83,0.00021306,2]
[349806343,1737437445338,-500.0,0.00021306,2]
[349806344,1737437445347,-500.0,0.00021306,2]
[349806345,1737437445357,-940.98,0.00021306,2]
[349806346,1737437445366,-850.68,0.00021306,2]
[349806347,1737437445375,-500.0,0.00021306,2]
[349806348,1737437445384,-500.0,0.00021306,2]
[349806349,1737437445394,-500.0,0.00021306,2]
[349806350,1737437445403,-500.0,0.00021306,2]
[349806351,1737437445412,-575.92,0.00021306,2]
[349806352,1737437445422,-500.0,0.00021306,2]
[349806353,1737437445432,-500.0,0.00021306,2]
[349806354,1737437445441,-520.1,0.00021306,2]
[349806355,1737437445450,-500.0,0.00021306,2]
[349806356,1737437445460,-500.0,0.00021306,2]
[349806357,1737437445470,-853.56,0.00021306,2]
[349806358,1737437445479,-500.0,0.00021306,2]
[349806359,1737437445488,-309.46528949,0.0002135,2]
[349806360,1737437445497,-150.0,0.00021408,2]
[349806361,1737437445507,-981.79,0.00021408,2]
[349806362,1737437445516,-437.71,0.00021408,2]
[349806363,1737437445525,-150.0,0.00021408,2]
[349806364,1737437445535,-150.0,0.00021408,2]
[349806365,1737437445544,-150.0,0.00021408,2]
[349806366,1737437445554,-150.0,0.00021408,2]
[349806367,1737437445563,-150.0,0.00021408,2]
[349806368,1737437445572,-437.71,0.00021408,2]
[349806369,1737437445583,-279.14,0.00021408,2]
[349806370,1737437445593,-981.79,0.00021408,2]
[349806371,1737437445602,-150.0,0.00021408,2]
[349806372,1737437445612,-437.71,0.00021408,2]
[349806373,1737437445621,-150.0,0.00021408,2]
[349806374,1737437445632,-150.0,0.00021408,2]
[349806375,1737437445641,-187.95,0.00021408,2]
[349806376,1737437445651,-981.79,0.00021408,2]
[349806378,1737437445660,-437.71,0.00021408,2]
[349806379,1737437445670,-150.0,0.00021408,2]
[349806380,1737437445679,-150.0,0.00021408,2]
[349806381,1737437445688,-436.75,0.00021408,2]
[349806382,1737437445697,-150.0,0.00021408,2]
[349806383,1737437445706,-981.79,0.00021408,2]
[349806384,1737437445716,-150.0,0.00021408,2]
[349806385,1737437445725,-150.0,0.00021408,2]
[349806386,1737437445734,-150.0,0.00021408,2]
[349806387,1737437445744,-150.0,0.00021408,2]
[349806388,1737437445753,-981.79,0.00021408,2]
[349806389,1737437445763,-981.79,0.00021408,2]
[349806390,1737437445772,-150.0,0.00021408,2]
[349806391,1737437445781,-150.0,0.00021408,2]
[349806392,1737437445791,-150.0,0.00021408,2]
[349806393,1737437445882,-981.79,0.00021408,2]
[349806394,1737437445891,-150.0,0.00021408,2]
[349806395,1737437445901,-675.43,0.00021408,2]
[349806396,1737437445911,-150.0,0.00021408,2]
[349806397,1737437445920,-150.0,0.00021408,2]
[349806398,1737437445930,-150.0,0.00021408,2]
[349806399,1737437445939,-150.0,0.00021408,2]
[349806400,1737437445948,-907.6386185,0.0002141,2]
[349806401,1737437445958,-500.0,0.00021446,2]
[349806402,1737437445967,-500.0,0.00021446,2]
[349806403,1737437445976,-500.0,0.00021446,2]
[349806404,1737437445985,-500.0,0.00021446,2]
[349806405,1737437445994,-500.0,0.00021446,2]
[349806406,1737437446005,-500.0,0.00021446,2]
[349806407,1737437446015,-263.38,0.00021446,2]
[349806408,1737437446024,-500.0,0.00021446,2]
[349806409,1737437446034,-500.0,0.00021446,2]
[349806410,1737437446043,-285.47562551,0.00021446,2]
[349806411,1737437446052,-409.83,0.00021446,2]
[349806412,1737437446061,-500.0,0.00021446,2]
[349806413,1737437446071,-500.0,0.00021446,2]
[349806414,1737437446082,-734.47,0.00021446,2]
[349806415,1737437446091,-500.0,0.00021446,2]
[349806416,1737437446100,-403.35,0.00021446,2]
[349806417,1737437446109,-500.0,0.00021446,2]
[349806418,1737437446119,-991.62,0.00021446,2]
[349806419,1737437446130,-500.0,0.00021446,2]
[349806420,1737437446141,-500.0,0.00021446,2]
[349806421,1737437446150,-500.0,0.00021446,2]
[349806422,1737437446159,-500.0,0.00021446,2]
[349806423,1737437446168,-500.0,0.00021446,2]
[349806424,1737437446178,-710.21,0.00021446,2]
[349806425,1737437446187,-525.35,0.00021446,2]
[349806426,1737437446196,-1216.28,0.00021446,2]
[349806427,1737437446207,-500.0,0.00021446,2]
[349806428,1737437446217,-500.0,0.00021446,2]
[349806429,1737437446227,-812.52,0.00021446,2]
[349806430,1737437446236,-500.0,0.00021446,2]
[349806431,1737437446245,-802.13,0.00021446,2]
[349806432,1737437446255,-500.0,0.00021446,2]
[349806433,1737437446264,-500.0,0.00021446,2]
[349806434,1737437446273,-500.0,0.00021446,2]
[349806435,1737437446281,-500.0,0.00021446,2]
[349806436,1737437446290,-500.0,0.00021447,2]
[349806437,1737437446300,-500.0,0.00021447,2]
[349806438,1737437446310,-500.0,0.00021447,2]
[349806439,1737437446320,-500.0,0.00021447,2]
[349806440,1737437446332,-670.49,0.00021447,2]
[349806441,1737437446342,-500.0,0.00021447,2]
[349806442,1737437446352,-500.0,0.00021447,2]
[349806443,1737437446362,-500.0,0.00021447,2]
[349806444,1737437446371,-239.48146743,0.00021447,2]
[349806445,1737437446380,-500.0,0.00021447,2]
[349806446,1737437446389,-500.0,0.00021447,2]
[349806447,1737437446398,-592.31224893,0.00021447,2]
[349806448,1737437446407,-170.56581339,0.00021447,2]
[349806449,1737437446417,-611.27,0.00021447,2]
[349806450,1737437446427,-500.0,0.00021447,2]
[349806451,1737437446435,-175.36,0.00021456,2]
[349806452,1737437446445,-907.6386185,0.00021533,2]
[349806453,1737437446454,-500.0,0.0002155,2]
[349806454,1737437446464,-500.0,0.0002155,2]
[349806455,1737437446473,-500.0,0.0002155,2]
[349806456,1737437446482,-500.0,0.0002155,2]
[349806457,1737437446491,-500.0,0.0002155,2]
[349806458,1737437446501,-500.0,0.0002155,2]
[349806459,1737437446511,-714.56,0.0002155,2]
[349806460,1737437446521,-588.16,0.0002155,2]
[349806461,1737437446530,-500.0,0.0002155,2]
[349806462,1737437446540,-407.84,0.0002155,2]
[349806463,1737437446549,-514.34,0.0002155,2]
[349806464,1737437446559,-712.93,0.0002155,2]
[349806465,1737437446569,-500.0,0.0002155,2]
[349806466,1737437446578,-500.0,0.0002155,2]
[349806467,1737437446588,-757.38,0.0002155,2]
[349806468,1737437446598,-597.23,0.00021551,2]
[349806469,1737437446607,-500.0,0.00021551,2]
[349806470,1737437446616,-500.0,0.00021551,2]
[349806471,1737437446626,-532.0406084,0.0002156,2]
[349806472,1737437446636,-225.967759,0.0002158,2]
[349806473,1737437446646,-493.9,0.0002158,2]
[349806474,1737437446655,-500.0,0.0002158,2]
[349806475,1737437446664,-500.0,0.0002158,2]
[349806476,1737437446674,-500.0,0.0002158,2]
[349806477,1737437446683,-500.0,0.0002158,2]
[349806478,1737437446693,-778.16,0.0002158,2]
[349806479,1737437446703,-536.83,0.0002158,2]
[349806480,1737437446712,-500.0,0.0002158,2]
[349806481,1737437446721,-500.0,0.0002158,2]
[349806482,1737437446731,-940.98,0.0002158,2]
[349806483,1737437446740,-850.68,0.0002158,2]
[349806484,1737437446749,-500.0,0.0002158,2]
[349806485,1737437446758,-500.0,0.0002158,2]
[349806486,1737437446767,-500.0,0.0002158,2]
[349806487,1737437446777,-500.0,0.0002158,2]
[349806488,1737437446786,-575.92,0.0002158,2]
[349806489,1737437446795,-500.0,0.0002158,2]
[349806490,1737437446805,-500.0,0.0002158,2]
[349806491,1737437446814,-520.1,0.0002158,2]
[349806492,1737437446824,-500.0,0.0002158,2]
[349806493,1737437446834,-500.0,0.0002158,2]
[349806494,1737437446844,-853.56,0.0002158,2]
[349806495,1737437446853,-500.0,0.0002158,2]
[349806496,1737437446862,-2025.27797416,0.00021621,2]
[349806497,1737437446872,-414.30244784,0.00021649,2]
[349806498,1737437446882,-907.6386185,0.00021655,2]
[349806499,1737437446891,-1627.74335221,0.0002167,2]
[349806500,1737437446901,-3529.01,0.00021685,7]
[349806501,1737437446910,-3529.01,0.00021685,7]
[349806502,1737437446920,-3529.01,0.00021685,7]
[349806503,1737437446929,-3529.01,0.00021685,7]
[349806504,1737437446938,-50000.0,0.000217,3]
[349806505,1737437446948,-648.86,0.000217,30]
[349806506,1737437446957,-500.0,0.0002172,2]
[349806507,1737437446967,-500.0,0.0002172,2]
[349806508,1737437446976,-500.0,0.0002172,2]
[349806509,1737437446986,-500.0,0.0002172,2]
[349806510,1737437446995,-500.0,0.0002172,2]
[349806511,1737437447006,-500.0,0.0002172,2]
[349806512,1737437447015,-500.0,0.0002172,2]
[349806513,1737437447025,-500.0,0.0002172,2]
[349806514,1737437447034,-500.0,0.0002172,2]
[349806515,1737437447043,-500.0,0.0002172,2]
[349806516,1737437447052,-734.47,0.0002172,2]
[349806517,1737437447062,-500.0,0.0002172,2]
[349806518,1737437447071,-500.0,0.0002172,2]
[349806519,1737437447081,-991.62,0.0002172,2]
[349806520,1737437447090,-568.47,0.0002172,2]
[349806521,1737437447099,-374.44,0.0002172,2]
[349806522,1737437447109,-500.0,0.0002172,2]
[349806523,1737437447120,-500.0,0.0002172,2]
[349806524,1737437447133,-500.0,0.0002172,2]
[349806525,1737437447142,-710.21,0.0002172,2]
[349806526,1737437447151,-525.35,0.0002172,2]
[349806527,1737437447162,-1216.28,0.0002172,2]
[349806528,1737437447171,-500.0,0.0002172,2]
[349806529,1737437447181,-500.0,0.0002172,2]
[349806530,1737437447190,-812.52,0.0002172,2]
[349806531,1737437447199,-500.0,0.0002172,2]
[349806532,1737437447209,-802.13,0.0002172,2]
[349806533,1737437447219,-500.0,0.0002172,2]
[349806534,1737437447230,-500.0,0.0002172,2]
[349806535,1737437447239,-500.0,0.0002172,2]
[349806536,1737437447248,-500.0,0.0002172,2]
[349806537,1737437447258,-500.0,0.00021721,2]
[349806538,1737437447267,-500.0,0.00021721,2]
[349806539,1737437447277,-500.0,0.00021721,2]
[349806540,1737437447286,-500.0,0.00021721,2]
[349806541,1737437447295,-670.49,0.00021721,2]
[349806542,1737437447305,-597.8676774,0.00021721,2]
[349806543,1737437447315,-500.0,0.00021721,2]
[349806544,1737437447324,-500.0,0.00021721,2]
[349806545,1737437447336,-500.0,0.00021721,2]
[349806546,1737437447345,-500.0,0.00021721,2]
[349806547,1737437447356,-611.27,0.00021721,2]
[349806548,1737437447365,-500.0,0.00021721,2]
[349806549,1737437447375,-261.4457,0.00021725,2]
[349806550,1737437447384,-682.57823302,0.00021726,2]
[349806551,1737437447394,-2055.31336979,0.00021731,2]
[349806552,1737437447403,-30554.47318089,0.00021732,2]
[349806553,1737437447413,-1000.0,0.00021733,2]
[349806554,1737437447422,-39021.56428647,0.00021733,2]
[349806555,1737437447432,-1095.39029872,0.00021735,2]
[349806556,1737437447442,-3148.59594952,0.00021736,2]
[349806557,1737437447452,-1102.36025983,0.00021737,2]
[349806558,1737437447461,-2875.49153945,0.00021738,2]
[349806559,1737437447471,-3148.59594952,0.00021742,2]
[349806560,1737437447480,-200.0,0.00021743,2]
[349806561,1737437447490,-1095.39029872,0.00021744,2]
[349806562,1737437447499,-20967.74203443,0.00021746,2]
[349806563,1737437447509,-3148.59594952,0.00021747,2]
[349806564,1737437447519,-247.95561693,0.00021747,2]
[349806565,1737437447528,-300.0,0.00021748,2]
[349806566,1737437447537,-3074.39843982,0.0002175,2]
[349806567,1737437447547,-1604.78763652,0.00021753,2]
[349806568,1737437447556,-2055.31336979,0.00021754,2]
[349806569,1737437447566,-200.0,0.00021755,2]
[349806570,1737437447575,-682.57823302,0.00021756,2]
[349806571,1737437447587,-1437.74576972,0.00021757,2]
[349806572,1737437447595,-2875.49153945,0.0002176,2]
[349806573,1737437447604,-30554.47318089,0.00021763,2]
[349806574,1737437447614,-39021.56428647,0.00021765,2]
[349806575,1737437447624,-200.0,0.00021769,2]
[349806576,1737437447634,-1604.78763652,0.00021772,2]
[349806577,1737437447644,-30554.47318089,0.00021773,2]
[349806578,1737437447654,-4406.32160218,0.00021777,2]
[349806579,1737437447664,-907.6386185,0.00021778,2]
[349806580,1737437447673,-247.95561693,0.00021778,2]
[349806581,1737437447682,-150.0,0.00021778,2]
[349806582,1737437447691,-150.0,0.00021781,2]
[349806583,1737437447701,-2875.49153945,0.00021782,2]
[349806584,1737437447710,-2055.31336979,0.00021783,2]
[349806585,1737437447721,-2875.49153945,0.00021787,2]
[349806586,1737437447731,-6234.19314098,0.00021793,2]
[349806587,1737437447741,-1979.00814109,0.00021794,2]
[349806588,1737437447751,-3148.59594952,0.00021794,2]
[349806589,1737437447760,-3074.39843982,0.00021794,2]
[349806590,1737437447770,-300.0,0.00021795,2]
[349806591,1737437447779,-2055.31336979,0.00021796,2]
[349806592,1737437447789,-20967.74203443,0.00021797,2]
[349806593,1737437447797,-2437.40542912,0.00021798,2]
[349806594,1737437447807,-150.0,0.000218,14]
[349806595,1737437447817,-150.0,0.000218,13]
[349806596,1737437447827,-200.0,0.000218,2]
[349806597,1737437447837,-200.0,0.000218,3]
[349806598,1737437447846,-150.0,0.000218,15]
[349806599,1737437447856,-150.0,0.000218,15]
[349806600,1737437447865,-150.0,0.000218,16]
[349806601,1737437447874,-150.0,0.000218,2]
[349806602,1737437447884,-150.0,0.000218,3]
[349806603,1737437447893,-150.0,0.000218,13]
[349806604,1737437447903,-150.0,0.000218,14]
[349806605,1737437447912,-150.0,0.000218,15]
[349806606,1737437447922,-247.95561693,0.00021801,2]
[349806607,1737437447931,-150.0,0.00021801,2]
[349806608,1737437447941,-6234.19314098,0.00021803,2]
[349806609,1737437447950,-1000.0,0.00021805,2]
[349806610,1737437447960,-3074.39843982,0.00021805,2]
[349806611,1737437447969,-200.0,0.00021806,2]
[349806612,1737437447978,-2516.7733427,0.00021807,2]
[349806613,1737437447988,-2437.40542912,0.00021809,2]
[349806614,1737437447997,-247.95561693,0.0002181,2]
[349806615,1737437448008,-1481.62116291,0.0002181,2]
[349806616,1737437448018,-150.0,0.0002181,2]
[349806617,1737437448028,-1000.0,0.00021812,2]
[349806618,1737437448038,-1604.78763652,0.00021816,2]
[349806619,1737437448048,-4406.32160218,0.00021816,2]
[349806620,1737437448058,-1102.36025983,0.00021818,2]
[349806621,1737437448068,-1604.78763652,0.00021818,2]
[349806622,1737437448077,-1481.62116291,0.0002182,2]
[349806623,1737437448088,-200.0,0.0002182,2]
[349806624,1737437448098,-20967.74203443,0.00021822,2]
[349806625,1737437448108,-39021.56428647,0.00021822,2]
[349806626,1737437448118,-682.57823302,0.00021823,2]
[349806627,1737437448127,-3074.39843982,0.00021823,2]
[349806628,1737437448140,-4406.32160218,0.00021824,2]
[349806629,1737437448150,-500.0,0.00021824,2]
[349806630,1737437448160,-500.0,0.00021824,2]
[349806631,1737437448172,-500.0,0.00021824,2]
[349806632,1737437448181,-500.0,0.00021824,2]
[349806633,1737437448191,-500.0,0.00021824,2]
[349806634,1737437448201,-500.0,0.00021824,2]
[349806635,1737437448213,-500.0,0.00021824,2]
[349806636,1737437448223,-714.56,0.00021824,2]
[349806637,1737437448233,-588.16,0.00021824,2]
[349806638,1737437448242,-500.0,0.00021824,2]
[349806639,1737437448252,-712.93,0.00021824,2]
[349806640,1737437448262,-500.0,0.00021824,2]
[349806641,1737437448272,-500.0,0.00021824,2]
[349806642,1737437448281,-757.38,0.00021824,2]
[349806643,1737437448291,-247.95561693,0.00021824,2]
[349806644,1737437448301,-200.0,0.00021825,2]
[349806645,1737437448310,-597.23,0.00021825,2]
[349806646,1737437448320,-500.0,0.00021825,2]
[349806647,1737437448331,-162.17,0.00021825,2]
[349806648,1737437448342,-1102.36025983,0.00021826,2]
[349806649,1737437448351,-2516.7733427,0.00021827,2]
[349806650,1737437448362,-1095.39029872,0.00021831,2]
[349806651,1737437448372,-1979.00814109,0.00021832,2]
[349806652,1737437448381,-1000.0,0.00021832,2]
[349806653,1737437448391,-682.57823302,0.00021832,2]
[349806654,1737437448402,-6234.19314098,0.00021832,2]
[349806655,1737437448411,-200.0,0.00021833,2]
[349806656,1737437448421,-1102.36025983,0.00021834,2]
[349806657,1737437448431,-247.95561693,0.00021835,2]
[349806658,1737437448440,-2516.7733427,0.00021835,2]
[349806659,1737437448449,-4406.32160218,0.00021836,2]
[349806660,1737437448458,-1437.74576972,0.00021836,2]
[349806661,1737437448468,-1481.62116291,0.00021836,2]
[349806662,1737437448480,-247.95561693,0.00021836,2]
[349806663,1737437448490,-39021.56428647,0.00021836,2]
[349806664,1737437448500,-2516.7733427,0.00021837,2]
[349806665,1737437448510,-300.0,0.00021838,2]
[349806666,1737437448519,-2437.40542912,0.00021839,2]
[349806667,1737437448528,-247.95561693,0.00021841,2]
[349806668,1737437448537,-3148.59594952,0.00021843,2]
[349806669,1737437448547,-2516.7733427,0.00021843,2]
[349806670,1737437448556,-6234.19314098,0.00021844,2]
[349806671,1737437448567,-2437.40542912,0.00021844,2]
[349806672,1737437448576,-1481.62116291,0.00021845,2]
[349806673,1737437448587,-247.95561693,0.00021846,2]
[349806674,1737437448597,-150.0,0.00021846,2]
[349806675,1737437448607,-2875.49153945,0.00021849,2]
[349806676,1737437448616,-30554.47318089,0.0002185,2]
[349806677,1737437448626,-28050.0392,0.0002185,2]
[349806678,1737437448636,-1604.78763652,0.00021853,2]
[349806679,1737437448646,-500.0,0.00021854,2]
[349806680,1737437448655,-500.0,0.00021854,2]
[349806681,1737437448666,-500.0,0.00021854,2]
[349806682,1737437448675,-500.0,0.00021854,2]
[349806683,1737437448685,-778.16,0.00021854,2]
[349806684,1737437448694,-536.83,0.00021854,2]
[349806685,1737437448704,-500.0,0.00021854,2]
[349806686,1737437448713,-500.0,0.00021854,2]
[349806687,1737437448723,-940.98,0.00021854,2]
[349806688,1737437448734,-850.68,0.00021854,2]
[349806689,1737437448743,-500.0,0.00021854,2]
[349806690,1737437448754,-500.0,0.00021854,2]
[349806691,1737437448764,-500.0,0.00021854,2]
[349806692,1737437448774,-500.0,0.00021854,2]
[349806693,1737437448784,-575.92,0.00021854,2]
[349806694,1737437448793,-500.0,0.00021854,2]
[349806695,1737437448803,-500.0,0.00021854,2]
[349806696,1737437448813,-520.1,0.00021854,2]
[349806697,1737437448823,-500.0,0.00021854,2]
[349806698,1737437448833,-500.0,0.00021854,2]
[349806699,1737437448843,-853.56,0.00021854,2]
[349806700,1737437448853,-500.0,0.00021854,2]
[349806701,1737437448863,-1095.39029872,0.00021856,2]
[349806702,1737437448873,-1481.62116291,0.00021856,2]
[349806703,1737437448883,-1437.74576972,0.00021859,2]
[349806704,1737437448894,-150.0,0.00021859,2]
[349806705,1737437448904,-150.0,0.00021862,2]
[349806706,1737437448914,-1979.00814109,0.00021864,2]
[349806707,1737437448923,-20967.74203443,0.00021865,2]
[349806708,1737437448932,-2437.40542912,0.00021866,2]
[349806709,1737437448941,-1000.0,0.00021867,2]
[349806710,1737437448951,-1000.0,0.00021868,2]
[349806711,1737437448961,-20967.74203443,0.00021868,2]
[349806712,1737437448971,-2055.31336979,0.00021869,2]
[349806713,1737437448982,-682.57823302,0.00021869,2]
[349806714,1737437448993,-1095.39029872,0.0002187,2]
[349806715,1737437449003,-39021.56428647,0.00021873,2]
[349806716,1737437449014,-3074.39843982,0.00021876,2]
[349806717,1737437449025,-1979.00814109,0.00021878,2]
[349806718,1737437449036,-200.0,0.00021881,2]
[349806719,1737437449046,-30554.47318089,0.00021883,2]
[349806720,1737437449056,-1437.74576972,0.00021884,2]
[349806721,1737437449066,-247.95561693,0.00021884,2]
[349806722,1737437449076,-300.0,0.00021885,2]
[349806723,1737437449087,-200.0,0.00021886,2]
[349806724,1737437449097,-4406.32160218,0.00021888,2]
[349806725,1737437449109,-2000.0,0.0002189,2]
[349806726,1737437449128,-500.0,0.0002189,2]
[349806727,1737437449141,-1102.36025983,0.00021891,2]
[349806728,1737437449151,-6234.19314098,0.00021892,2]
[349806729,1737437449161,-300.0,0.00021895,2]
[349806730,1737437449172,-1979.00814109,0.00021897,2]
[349806731,1737437449182,-1101.76048706,0.00021897,4]
[349806732,1737437449193,-1437.74576972,0.00021897,2]
[349806733,1737437449205,-799.15,0.00021898,2]
[349806734,1737437449215,-172.07225215,0.00021899,2]
[349806735,1737437449223,-154.0,0.000219,2]
[349806736,1737437449233,-213.393456,0.000219,31]
[349806737,1737437449243,-18779.515003,0.000219,2]
[349806738,1737437449252,-2225.09,0.000219,31]
[349806739,1737437449262,-2225.09,0.000219,31]
[349806740,1737437449271,-2225.09,0.000219,31]
[349806741,1737437449281,-2225.09,0.000219,31]
[349806742,1737437449290,-2225.09,0.000219,31]
[349806743,1737437449300,-2225.09,0.000219,31]
[349806744,1737437449310,-2225.09,0.000219,31]
[349806745,1737437449319,-2225.09,0.000219,31]
[349806746,1737437449329,-2225.09,0.000219,31]
[349806747,1737437449339,-2225.09,0.000219,31]
[349806748,1737437449349,-2225.09,0.000219,31]
[349806749,1737437449359,-2225.09,0.000219,31]
[349806750,1737437449368,-2225.09,0.000219,31]
[349806751,1737437449382,-2225.09,0.000219,31]
[349806752,1737437449392,-2225.09,0.000219,31]
[349806753,1737437449402,-2225.09,0.000219,31]
[349806754,1737437449412,-989.91491236,0.000219,2]
[349806755,1737437449422,-989.91491217,0.000219,2]
[349806756,1737437449431,-989.91491217,0.000219,2]
[349806757,1737437449440,-989.91491217,0.000219,2]
[349806758,1737437449450,-989.91491217,0.000219,2]
[349806759,1737437449459,-989.91491217,0.000219,2]
[349806760,1737437449469,-989.91491217,0.000219,2]
[349806761,1737437449627,-989.91491217,0.000219,2]
[349806762,1737437449638,-989.91491217,0.000219,2]
[349806763,1737437449652,-989.91491217,0.000219,2]
[349806764,1737437449661,-989.91491217,0.000219,2]
[349806765,1737437449670,-989.91491217,0.000219,2]
[349806766,1737437449680,-989.91491217,0.000219,2]
[349806767,1737437449689,-989.91491217,0.000219,2]
[349806768,1737437449698,-989.91491217,0.000219,2]
[349806769,1737437449707,-989.91491217,0.000219,2]
[349806770,1737437449716,-989.91491217,0.000219,2]
[349806771,1737437449726,-989.91491217,0.000219,2]
[349806772,1737437449735,-989.91491217,0.000219,2]
[349806773,1737437449744,-989.91491217,0.000219,2]
[349806774,1737437449753,-907.6386185,0.000219,2]
[349806775,1737437449762,-92552.87787031,0.000219,2]
[349806776,1737437449771,-15830.57890493,0.000219,2]
[349806777,1737437449780,-309.46528949,0.000219,2]
[349806778,1737437449789,-1598.89073774,0.000219,2]
[349806779,1737437449799,-150.0,0.00021904,2]
[349806780,1737437449808,-500.0,0.00021917,2]
[349806781,1737437449817,-500.0,0.00021917,2]
[349806782,1737437449827,-500.0,0.00021917,2]
[349806783,1737437449837,-500.0,0.00021917,2]
[349806784,1737437449846,-500.0,0.00021917,2]
[349806785,1737437449855,-500.0,0.00021917,2]
[349806786,1737437449864,-500.0,0.00021917,2]
[349806787,1737437449874,-500.0,0.00021917,2]
[349806788,1737437449883,-500.0,0.00021917,8]
[349806789,1737437449892,-503.79992428,0.00021917,8]
[349806790,1737437449901,-4000.0,0.00021918,2]
[349806791,1737437449911,-150.0,0.00021918,2]
[349806792,1737437449920,-1000.0,0.00021918,2]
[349806793,1737437449929,-399.88289643,0.0002192,2]
[349806794,1737437449938,-399.88289643,0.0002192,2]
[349806795,1737437449948,-399.88289643,0.0002192,2]
[349806796,1737437449957,-399.88289643,0.0002192,2]
[349806797,1737437449966,-399.88289643,0.0002192,2]
[349806798,1737437449976,-399.88289643,0.0002192,2]
[349806799,1737437449985,-399.88289643,0.0002192,2]
[349806800,1737437449994,-399.88289643,0.0002192,2]
[349806801,1737437450002,-399.88289643,0.0002192,2]
[349806802,1737437450011,-399.88289643,0.0002192,2]
[349806803,1737437450020,-399.88289643,0.0002192,2]
[349806804,1737437450029,-399.88289643,0.0002192,2]
[349806805,1737437450039,-399.88289643,0.0002192,2]
[349806806,1737437450048,-399.88289643,0.0002192,2]
[349806807,1737437450057,-399.88289643,0.0002192,2]
[349806808,1737437450066,-399.88289643,0.0002192,2]
[349806809,1737437450075,-399.88289643,0.0002192,2]
[349806810,1737437450086,-399.88289643,0.0002192,2]
[349806811,1737437450095,-399.88289643,0.0002192,2]
[349806812,1737437450104,-399.88,0.0002192,2]
[349806813,1737437450113,-933.06009168,0.0002192,2]
[349806814,1737437450123,-933.06009168,0.0002192,2]
[349806815,1737437450133,-933.06009168,0.0002192,2]
[349806816,1737437450143,-933.06009168,0.0002192,2]
[349806817,1737437450152,-933.06009168,0.0002192,2]
[349806818,1737437450161,-933.06009168,0.0002192,2]
[349806819,1737437450171,-933.06009168,0.0002192,2]
[349806820,1737437450180,-933.06009168,0.0002192,2]
[349806821,1737437450189,-933.06009168,0.0002192,2]